[Event "Late-Titled-Tuesday-Blitz-February-06-2024"]
[Site "Chess.com"]
[Date "2024.02.06"]
[Round "8"]
[White "JoakimVonAnd"]
[Black "Arystanner"]
[Result "1-0"]
[WhiteElo "2680"]
[BlackElo "2848"]
[TimeControl "180+1"]
[EndTime "15:28:10 PST"]
[Termination "JoakimVonAnd won by resignation"]

1. Nf3 {[%clk 0:03:00.9]} 1... d5 {[%clk 0:03:00.4]} 2. g3 {[%clk 0:03:00.7]}
2... Nd7 {[%clk 0:03:01.1]} 3. d4 {[%clk 0:03:00.2]} 3... Ngf6 {[%clk
0:03:01.2]} 4. Bg2 {[%clk 0:03:00.1]} 4... e6 {[%clk 0:03:01.8]} 5. O-O {[%clk
0:02:59.9]} 5... Be7 {[%clk 0:03:02.6]} 6. b3 {[%clk 0:02:57.4]} 6... O-O {[%clk
0:03:02.2]} 7. c4 {[%clk 0:02:57.8]} 7... c6 {[%clk 0:03:02.5]} 8. Bb2 {[%clk
0:02:58.2]} 8... a5 {[%clk 0:03:02.9]} 9. Nc3 {[%clk 0:02:57.1]} 9... b6 {[%clk
0:03:03.5]} 10. Nd2 {[%clk 0:02:55.9]} 10... b5 {[%clk 0:03:04.1]} 11. cxb5
{[%clk 0:02:50.3]} 11... cxb5 {[%clk 0:03:04.5]} 12. Nxb5 {[%clk 0:02:50.7]}
12... Qb6 {[%clk 0:03:04.9]} 13. a4 {[%clk 0:02:45.3]} 13... Ba6 {[%clk
0:03:05.1]} 14. e4 {[%clk 0:02:10.8]} 14... Bxb5 {[%clk 0:03:05.6]} 15. axb5
{[%clk 0:02:11.2]} 15... Rfc8 {[%clk 0:03:06.3]} 16. exd5 {[%clk 0:02:09.1]}
16... exd5 {[%clk 0:03:03.6]} 17. Nf3 {[%clk 0:02:00]} 17... Qxb5 {[%clk
0:03:01]} 18. Ne5 {[%clk 0:01:59.9]} 18... Rab8 {[%clk 0:02:53.3]} 19. Ba3
{[%clk 0:01:50.8]} 19... Bxa3 {[%clk 0:02:50.6]} 20. Rxa3 {[%clk 0:01:51.7]}
20... Nxe5 {[%clk 0:02:44.9]} 21. dxe5 {[%clk 0:01:51.5]} 21... Ne4 {[%clk
0:02:45.8]} 22. Bxe4 {[%clk 0:01:44.2]} 22... dxe4 {[%clk 0:02:46.7]} 23. Qe1
{[%clk 0:01:44.2]} 23... Qxe5 {[%clk 0:02:27.1]} 24. Rxa5 {[%clk 0:01:42.2]}
24... Qe7 {[%clk 0:02:27.3]} 25. Ra4 {[%clk 0:01:39.9]} 25... f5 {[%clk
0:02:27.4]} 26. Qd1 {[%clk 0:01:30.6]} 26... Qe6 {[%clk 0:02:18.9]} 27. Ra5
{[%clk 0:01:11.9]} 27... g6 {[%clk 0:01:54.4]} 28. Ra7 {[%clk 0:01:01.3]} 28...
Rd8 {[%clk 0:01:48.2]} 29. Qa1 {[%clk 0:00:53.3]} 29... Rd7 {[%clk 0:01:48.6]}
30. Rd1 {[%clk 0:00:43]} 30... Rxa7 {[%clk 0:01:31.7]} 31. Qxa7 {[%clk
0:00:42.5]} 31... Re8 {[%clk 0:01:32.4]} 32. b4 {[%clk 0:00:40.1]} 32... e3
{[%clk 0:01:24.3]} 33. Qxe3 {[%clk 0:00:36.7]} 33... Qxe3 {[%clk 0:01:25.2]} 34.
fxe3 {[%clk 0:00:37.6]} 34... Rxe3 {[%clk 0:01:26.1]} 35. Rb1 {[%clk 0:00:37.9]}
35... Kf7 {[%clk 0:01:26.4]} 36. b5 {[%clk 0:00:38.1]} 36... Re7 {[%clk
0:01:26.4]} 37. b6 {[%clk 0:00:38.7]} 37... Rb7 {[%clk 0:01:27]} 38. Kf2 {[%clk
0:00:39.4]} 38... Ke6 {[%clk 0:01:27.7]} 39. Kf3 {[%clk 0:00:40]} 39... g5
{[%clk 0:01:25.2]} 40. Rb5 {[%clk 0:00:39.9]} 40... h6 {[%clk 0:01:13.8]} 41. h3
{[%clk 0:00:40]} 41... Kd6 {[%clk 0:01:14]} 42. Rxf5 {[%clk 0:00:39.2]} 42...
Ke6 {[%clk 0:00:51.9]} 43. Rb5 {[%clk 0:00:39]} 43... Kd6 {[%clk 0:00:52.7]} 44.
Kg4 {[%clk 0:00:37.8]} 1-0

[Event "Late-Titled-Tuesday-Blitz-February-06-2024"]
[Site "Chess.com"]
[Date "2024.02.06"]
[Round "8"]
[White "mbojan"]
[Black "IMSlavin"]
[Result "1-0"]
[WhiteElo "2823"]
[BlackElo "2351"]
[TimeControl "180+1"]
[EndTime "15:28:10 PST"]
[Termination "mbojan won by checkmate"]

1. h4 {[%clk 0:02:23]} 1... Nc6 {[%clk 0:02:59]} 2. a4 {[%clk 0:02:22.9]} 2...
e5 {[%clk 0:02:56.1]} 3. a5 {[%clk 0:02:22.4]} 3... a6 {[%clk 0:02:53.7]} 4. c3
{[%clk 0:02:21]} 4... Be7 {[%clk 0:02:50.3]} 5. d4 {[%clk 0:02:21.2]} 5... exd4
{[%clk 0:02:44.6]} 6. cxd4 {[%clk 0:02:22.1]} 6... Bxh4 {[%clk 0:02:40.2]} 7.
Nf3 {[%clk 0:02:20]} 7... Bf6 {[%clk 0:02:35.3]} 8. Nc3 {[%clk 0:02:20]} 8...
Nge7 {[%clk 0:02:33.7]} 9. d5 {[%clk 0:02:19.9]} 9... Ne5 {[%clk 0:02:32.4]} 10.
d6 {[%clk 0:02:19.8]} 10... Nxf3+ {[%clk 0:02:31.5]} 11. gxf3 {[%clk 0:02:19.8]}
11... Nc6 {[%clk 0:02:25.7]} 12. dxc7 {[%clk 0:02:14.9]} 12... Qxc7 {[%clk
0:02:25.7]} 13. Nd5 {[%clk 0:02:15.2]} 13... Qd8 {[%clk 0:02:16.8]} 14. Bf4
{[%clk 0:02:15.2]} 14... Be5 {[%clk 0:02:03.3]} 15. Bxe5 {[%clk 0:02:12.9]}
15... Nxe5 {[%clk 0:02:03.2]} 16. Qd4 {[%clk 0:02:13.6]} 16... d6 {[%clk
0:01:56.6]} 17. f4 {[%clk 0:02:13.3]} 17... Ng6 {[%clk 0:01:29.6]} 18. Qxg7
{[%clk 0:02:12.3]} 18... Be6 {[%clk 0:01:30.5]} 19. Nb6 {[%clk 0:01:53]} 19...
Rb8 {[%clk 0:01:26.6]} 20. Rc1 {[%clk 0:01:46]} 20... d5 {[%clk 0:01:11.7]} 21.
Bh3 {[%clk 0:01:33.5]} 21... Qd6 {[%clk 0:01:10.8]} 22. Bxe6 {[%clk 0:01:24.8]}
22... Qxe6 {[%clk 0:01:06.2]} 23. Rc3 {[%clk 0:01:23.6]} 23... d4 {[%clk
0:00:51.3]} 24. Qxd4 {[%clk 0:01:22.5]} 24... O-O {[%clk 0:00:50.5]} 25. Nd7
{[%clk 0:01:02.9]} 25... Rfd8 {[%clk 0:00:47]} 26. Nf6+ {[%clk 0:00:56.6]} 26...
Kf8 {[%clk 0:00:41.3]} 27. Nxh7+ {[%clk 0:00:57]} 27... Kg8 {[%clk 0:00:28]} 28.
Nf6+ {[%clk 0:00:46.1]} 28... Kf8 {[%clk 0:00:27.7]} 29. Qc5+ {[%clk 0:00:34.8]}
29... Kg7 {[%clk 0:00:24.9]} 30. Rh7+ {[%clk 0:00:33]} 30... Kxf6 {[%clk
0:00:21.7]} 31. Qg5# {[%clk 0:00:33.9]} 1-0

[Event "Late-Titled-Tuesday-Blitz-February-06-2024"]
[Site "Chess.com"]
[Date "2024.02.06"]
[Round "8"]
[White "Bryanl106"]
[Black "Englishman_18"]
[Result "0-1"]
[WhiteElo "2520"]
[BlackElo "2398"]
[TimeControl "180+1"]
[EndTime "15:28:10 PST"]
[Termination "Englishman_18 won by checkmate"]

1. e4 {[%clk 0:02:58.1]} 1... c5 {[%clk 0:02:59.4]} 2. Nf3 {[%clk 0:02:58.8]}
2... d6 {[%clk 0:02:58.7]} 3. d4 {[%clk 0:02:59.6]} 3... cxd4 {[%clk 0:02:59.2]}
4. Nxd4 {[%clk 0:03:00.5]} 4... Nf6 {[%clk 0:02:59.2]} 5. Nc3 {[%clk 0:03:00.9]}
5... a6 {[%clk 0:02:59.2]} 6. h3 {[%clk 0:03:01]} 6... e6 {[%clk 0:02:50.1]} 7.
g4 {[%clk 0:03:00.6]} 7... Be7 {[%clk 0:02:36.1]} 8. Bg2 {[%clk 0:03:00.4]} 8...
Nc6 {[%clk 0:02:35]} 9. O-O {[%clk 0:02:52.4]} 9... O-O {[%clk 0:02:29.7]} 10.
Be3 {[%clk 0:02:51.4]} 10... Bd7 {[%clk 0:02:27]} 11. Qe2 {[%clk 0:02:50.8]}
11... Qc7 {[%clk 0:02:17.5]} 12. f4 {[%clk 0:02:44.1]} 12... Nxd4 {[%clk
0:02:13.6]} 13. Bxd4 {[%clk 0:02:43.6]} 13... e5 {[%clk 0:02:13.2]} 14. fxe5
{[%clk 0:02:34.1]} 14... dxe5 {[%clk 0:02:11.8]} 15. Be3 {[%clk 0:02:33.6]}
15... b5 {[%clk 0:02:01]} 16. g5 {[%clk 0:02:30.6]} 16... Ne8 {[%clk 0:01:48.1]}
17. Nd5 {[%clk 0:02:24.7]} 17... Qd6 {[%clk 0:01:42.4]} 18. b4 {[%clk
0:02:24.6]} 18... Qe6 {[%clk 0:01:37.6]} 19. Qg4 {[%clk 0:02:16.6]} 19... Bd6
{[%clk 0:01:30.4]} 20. Qg3 {[%clk 0:02:15.4]} 20... Kh8 {[%clk 0:01:12.6]} 21.
Rad1 {[%clk 0:01:55.2]} 21... Nc7 {[%clk 0:01:08.1]} 22. Nb6 {[%clk 0:01:50.7]}
22... Rad8 {[%clk 0:01:00.8]} 23. Bc5 {[%clk 0:01:42.1]} 23... Bc6 {[%clk
0:00:56.8]} 24. Qf2 {[%clk 0:01:36.3]} 24... Bxc5 {[%clk 0:00:38]} 25. bxc5
{[%clk 0:01:37.2]} 25... Qxa2 {[%clk 0:00:16.9]} 26. Rxd8 {[%clk 0:01:36]} 26...
Rxd8 {[%clk 0:00:16.2]} 27. Qxf7 {[%clk 0:01:36.7]} 27... Ne6 {[%clk 0:00:13.6]}
28. Nd5 {[%clk 0:01:33.2]} 28... Bxd5 {[%clk 0:00:11.4]} 29. exd5 {[%clk
0:01:32.5]} 29... Nf4 {[%clk 0:00:11.6]} 30. Rxf4 {[%clk 0:01:32]} 30... exf4
{[%clk 0:00:11.3]} 31. c6 {[%clk 0:01:31.4]} 31... Qxc2 {[%clk 0:00:08.9]} 32.
c7 {[%clk 0:01:31.4]} 32... Rc8 {[%clk 0:00:06]} 33. d6 {[%clk 0:01:31.2]} 33...
Qc5+ {[%clk 0:00:05.6]} 34. Kh1 {[%clk 0:01:29.7]} 34... Qxd6 {[%clk 0:00:05.5]}
35. g6 {[%clk 0:01:29.7]} 35... hxg6 {[%clk 0:00:04.1]} 36. Be4 {[%clk
0:01:11.2]} 36... Rxc7 {[%clk 0:00:03.4]} 37. Qe8+ {[%clk 0:01:11.3]} 37... Kh7
{[%clk 0:00:03.6]} 38. h4 {[%clk 0:01:10.2]} 38... Rc1+ {[%clk 0:00:03.4]} 39.
Kh2 {[%clk 0:01:10.1]} 39... Qd2+ {[%clk 0:00:03.8]} 40. Kh3 {[%clk 0:01:07.8]}
40... Qe3+ {[%clk 0:00:03.8]} 41. Kg4 {[%clk 0:01:07]} 41... Rg1+ {[%clk
0:00:04]} 42. Bg2 {[%clk 0:01:06.7]} 42... Rxg2# {[%clk 0:00:04.1]} 0-1

[Event "Late-Titled-Tuesday-Blitz-February-06-2024"]
[Site "Chess.com"]
[Date "2024.02.06"]
[Round "8"]
[White "Zhigalko_Sergei"]
[Black "Witik"]
[Result "1-0"]
[WhiteElo "2943"]
[BlackElo "2753"]
[TimeControl "180+1"]
[EndTime "15:28:11 PST"]
[Termination "Zhigalko_Sergei won on time"]

1. e4 {[%clk 0:03:00.9]} 1... c6 {[%clk 0:03:00.2]} 2. d4 {[%clk 0:03:01.1]}
2... d5 {[%clk 0:03:00.8]} 3. e5 {[%clk 0:03:01.8]} 3... Bf5 {[%clk 0:03:01.4]}
4. Nf3 {[%clk 0:03:02.3]} 4... e6 {[%clk 0:03:01.9]} 5. Be2 {[%clk 0:03:03]}
5... Nd7 {[%clk 0:03:02.6]} 6. O-O {[%clk 0:02:40.4]} 6... h6 {[%clk 0:03:02.4]}
7. Nbd2 {[%clk 0:02:40.4]} 7... Ne7 {[%clk 0:03:02.7]} 8. a4 {[%clk 0:02:39.3]}
8... g5 {[%clk 0:02:57.4]} 9. a5 {[%clk 0:02:35.1]} 9... Bg7 {[%clk 0:02:55.9]}
10. Nb3 {[%clk 0:02:30.2]} 10... Qc7 {[%clk 0:02:35.2]} 11. Bd2 {[%clk
0:02:06.3]} 11... Ng6 {[%clk 0:02:28.7]} 12. c4 {[%clk 0:01:49]} 12... dxc4
{[%clk 0:02:21.2]} 13. Bxc4 {[%clk 0:01:48.8]} 13... g4 {[%clk 0:02:11.3]} 14.
Ne1 {[%clk 0:01:47.2]} 14... O-O {[%clk 0:01:36.4]} 15. Bd3 {[%clk 0:01:33.5]}
15... Bxd3 {[%clk 0:01:21]} 16. Nxd3 {[%clk 0:01:33.4]} 16... f5 {[%clk
0:01:21]} 17. exf6 {[%clk 0:01:18.3]} 17... Nxf6 {[%clk 0:01:21.2]} 18. Nbc5
{[%clk 0:01:16.2]} 18... Rae8 {[%clk 0:01:19.9]} 19. Re1 {[%clk 0:01:15.7]}
19... Qc8 {[%clk 0:01:04.4]} 20. Ne5 {[%clk 0:01:09.4]} 20... Nxe5 {[%clk
0:00:53.6]} 21. dxe5 {[%clk 0:01:09.5]} 21... Nd7 {[%clk 0:00:54.3]} 22. Ne4
{[%clk 0:00:53.5]} 22... Nxe5 {[%clk 0:00:14.6]} 23. Nd6 {[%clk 0:00:53.3]}
23... Qd7 {[%clk 0:00:13.4]} 24. Nxe8 {[%clk 0:00:52.6]} 24... Rxe8 {[%clk
0:00:10.8]} 25. Bc3 {[%clk 0:00:52]} 25... Nd3 {[%clk 0:00:03.8]} 26. Re3 {[%clk
0:00:48]} 26... Rd8 {[%clk 0:00:02.5]} 27. Qxg4 {[%clk 0:00:45.5]} 27... Kh7
{[%clk 0:00:01.8]} 28. Rxd3 {[%clk 0:00:45.7]} 1-0

[Event "Late-Titled-Tuesday-Blitz-February-06-2024"]
[Site "Chess.com"]
[Date "2024.02.06"]
[Round "8"]
[White "martinmena"]
[Black "Chempiblinka"]
[Result "0-1"]
[WhiteElo "2172"]
[BlackElo "2350"]
[TimeControl "180+1"]
[EndTime "15:28:11 PST"]
[Termination "Chempiblinka won on time"]

1. c4 {[%clk 0:03:00.9]} 1... Nf6 {[%clk 0:02:59.7]} 2. g3 {[%clk 0:02:58.6]}
2... g6 {[%clk 0:03:00.6]} 3. Bg2 {[%clk 0:02:58.3]} 3... Bg7 {[%clk 0:03:01.5]}
4. Nc3 {[%clk 0:02:58.4]} 4... O-O {[%clk 0:03:02.4]} 5. d3 {[%clk 0:02:57.2]}
5... c5 {[%clk 0:03:02.9]} 6. Bg5 {[%clk 0:02:56]} 6... Nc6 {[%clk 0:03:02]} 7.
Qd2 {[%clk 0:02:55.4]} 7... Re8 {[%clk 0:02:51.4]} 8. e4 {[%clk 0:02:54.8]} 8...
d6 {[%clk 0:02:50.6]} 9. Nge2 {[%clk 0:02:54.5]} 9... Rb8 {[%clk 0:02:49.6]} 10.
O-O {[%clk 0:02:53.5]} 10... a6 {[%clk 0:02:50]} 11. a4 {[%clk 0:02:50.3]} 11...
b6 {[%clk 0:02:30.5]} 12. f4 {[%clk 0:02:47.5]} 12... Bb7 {[%clk 0:02:30.5]} 13.
f5 {[%clk 0:02:41.5]} 13... Ng4 {[%clk 0:02:26.7]} 14. h3 {[%clk 0:02:30.7]}
14... Nge5 {[%clk 0:02:21.4]} 15. g4 {[%clk 0:02:00.9]} 15... Nb4 {[%clk
0:02:16.4]} 16. fxg6 {[%clk 0:00:59.3]} 16... hxg6 {[%clk 0:02:13.5]} 17. Nf4
{[%clk 0:00:10.4]} 17... Qd7 {[%clk 0:01:47.8]} 18. Bh4 {[%clk 0:00:09.7]} 18...
Bh6 {[%clk 0:01:36.3]} 19. g5 {[%clk 0:00:10.1]} 19... Bg7 {[%clk 0:01:36.9]}
20. Bg3 {[%clk 0:00:09.7]} 20... Nbc6 {[%clk 0:01:28.6]} 21. Ncd5 {[%clk
0:00:09.4]} 21... Nd4 {[%clk 0:01:24.8]} 22. Nxb6 {[%clk 0:00:08.5]} 22... Qc6
{[%clk 0:01:25.4]} 23. Nfd5 {[%clk 0:00:03]} 23... Nb3 {[%clk 0:01:22.2]} 24.
Qf2 {[%clk 0:00:01.8]} 24... Nxa1 {[%clk 0:00:58.5]} 25. Bxe5 {[%clk 0:00:02.2]}
25... dxe5 {[%clk 0:00:53.9]} 26. Qxf7+ {[%clk 0:00:02.8]} 26... Kh8 {[%clk
0:00:53.8]} 27. Rxa1 {[%clk 0:00:02.2]} 27... Qd6 {[%clk 0:00:43.5]} 0-1

[Event "Late-Titled-Tuesday-Blitz-February-06-2024"]
[Site "Chess.com"]
[Date "2024.02.06"]
[Round "8"]
[White "terrortoast"]
[Black "giovannibrandao7"]
[Result "1-0"]
[WhiteElo "2432"]
[BlackElo "2232"]
[TimeControl "180+1"]
[EndTime "15:28:15 PST"]
[Termination "terrortoast won by resignation"]

1. d4 {[%clk 0:03:00.9]} 1... Nf6 {[%clk 0:02:59.8]} 2. c4 {[%clk 0:02:59.9]}
2... e6 {[%clk 0:03:00.1]} 3. Nc3 {[%clk 0:03:00.1]} 3... Bb4 {[%clk 0:02:59.2]}
4. e3 {[%clk 0:03:00.5]} 4... O-O {[%clk 0:02:58.8]} 5. Bd3 {[%clk 0:03:00.5]}
5... d5 {[%clk 0:02:59]} 6. cxd5 {[%clk 0:03:01.4]} 6... exd5 {[%clk 0:02:58.6]}
7. a3 {[%clk 0:03:01.8]} 7... Be7 {[%clk 0:02:56.9]} 8. Nge2 {[%clk 0:03:01.7]}
8... c6 {[%clk 0:02:56.7]} 9. O-O {[%clk 0:03:01.6]} 9... Nbd7 {[%clk
0:02:51.6]} 10. Bd2 {[%clk 0:03:00.8]} 10... b5 {[%clk 0:02:46.6]} 11. Qc2
{[%clk 0:02:59.3]} 11... Bb7 {[%clk 0:02:45.9]} 12. f3 {[%clk 0:02:58.6]} 12...
Re8 {[%clk 0:02:45.1]} 13. e4 {[%clk 0:02:58.4]} 13... Nf8 {[%clk 0:02:33]} 14.
e5 {[%clk 0:02:52.3]} 14... N6d7 {[%clk 0:02:32.7]} 15. f4 {[%clk 0:02:51.1]}
15... a6 {[%clk 0:02:30.2]} 16. b4 {[%clk 0:02:37.7]} 16... a5 {[%clk
0:02:13.1]} 17. Rab1 {[%clk 0:02:35.3]} 17... axb4 {[%clk 0:02:12.6]} 18. axb4
{[%clk 0:02:36.2]} 18... f6 {[%clk 0:02:01.8]} 19. Ng3 {[%clk 0:02:23.9]} 19...
g6 {[%clk 0:01:31.6]} 20. e6 {[%clk 0:01:21.4]} 20... Nxe6 {[%clk 0:01:26.8]}
21. Bxg6 {[%clk 0:01:21.4]} 21... Ndf8 {[%clk 0:00:02.7]} 22. Bxe8 {[%clk
0:01:17.4]} 22... Qxe8 {[%clk 0:00:03.6]} 23. Nf5 {[%clk 0:01:12.9]} 23... Bd8
{[%clk 0:00:02.2]} 24. Rf3 {[%clk 0:00:56.7]} 24... Qd7 {[%clk 0:00:02.4]} 25.
Rg3+ {[%clk 0:00:38.5]} 25... Kh8 {[%clk 0:00:02.3]} 26. Nh6 {[%clk 0:00:38.3]}
26... Ng6 {[%clk 0:00:02.3]} 27. f5 {[%clk 0:00:35.9]} 27... Ng5 {[%clk
0:00:01.6]} 1-0

[Event "Late-Titled-Tuesday-Blitz-February-06-2024"]
[Site "Chess.com"]
[Date "2024.02.06"]
[Round "8"]
[White "Boninknights"]
[Black "szachmistrz2500"]
[Result "1-0"]
[WhiteElo "2355"]
[BlackElo "2487"]
[TimeControl "180+1"]
[EndTime "15:28:17 PST"]
[Termination "Boninknights won by resignation"]

1. d4 {[%clk 0:02:59.6]} 1... Nf6 {[%clk 0:02:57.9]} 2. Nf3 {[%clk 0:02:59.2]}
2... d5 {[%clk 0:02:55.8]} 3. c4 {[%clk 0:02:58.6]} 3... e6 {[%clk 0:02:55]} 4.
Nc3 {[%clk 0:02:57.3]} 4... a6 {[%clk 0:02:53.8]} 5. e3 {[%clk 0:02:54.2]} 5...
Be7 {[%clk 0:02:46.8]} 6. Qc2 {[%clk 0:02:52.7]} 6... O-O {[%clk 0:02:45.9]} 7.
a3 {[%clk 0:02:48.3]} 7... Nbd7 {[%clk 0:02:42.5]} 8. h3 {[%clk 0:02:46.4]} 8...
c5 {[%clk 0:02:35.4]} 9. cxd5 {[%clk 0:02:40.1]} 9... exd5 {[%clk 0:02:30.9]}
10. dxc5 {[%clk 0:02:35.5]} 10... Nxc5 {[%clk 0:02:30.6]} 11. b4 {[%clk
0:02:31.6]} 11... Ne6 {[%clk 0:02:16.7]} 12. Bd3 {[%clk 0:02:25]} 12... Bd7
{[%clk 0:02:06.9]} 13. O-O {[%clk 0:02:22.1]} 13... Rc8 {[%clk 0:02:07]} 14. Qb3
{[%clk 0:02:18.7]} 14... Bc6 {[%clk 0:02:05.1]} 15. Bb2 {[%clk 0:02:14.5]} 15...
Ne4 {[%clk 0:02:01.5]} 16. Rfd1 {[%clk 0:02:09]} 16... Nxc3 {[%clk 0:01:56.1]}
17. Bxc3 {[%clk 0:02:02.5]} 17... Bf6 {[%clk 0:01:55.5]} 18. Rac1 {[%clk
0:01:58.1]} 18... Qe7 {[%clk 0:01:51.1]} 19. Ne5 {[%clk 0:01:47]} 19... Bxe5
{[%clk 0:01:40.1]} 20. Bxe5 {[%clk 0:01:45.5]} 20... Ng5 {[%clk 0:01:38.9]} 21.
Qb2 {[%clk 0:01:34.1]} 21... f6 {[%clk 0:01:25.6]} 22. Bd4 {[%clk 0:01:30.1]}
22... Ne4 {[%clk 0:01:24.3]} 23. Bc5 {[%clk 0:01:23.8]} 23... Nxc5 {[%clk
0:01:21.4]} 24. Rxc5 {[%clk 0:01:22.5]} 24... Rfd8 {[%clk 0:01:16.4]} 25. Qc2
{[%clk 0:01:16]} 25... h6 {[%clk 0:00:49.1]} 26. Bxa6 {[%clk 0:01:11.6]} 26...
Qd7 {[%clk 0:00:44]} 27. b5 {[%clk 0:01:06.6]} 27... bxa6 {[%clk 0:00:38.6]} 28.
bxc6 {[%clk 0:01:04.9]} 28... Qd6 {[%clk 0:00:37.4]} 29. c7 {[%clk 0:01:00.2]}
29... Rd7 {[%clk 0:00:36.8]} 30. Rcxd5 {[%clk 0:00:54.6]} 30... Rdxc7 {[%clk
0:00:17.6]} 31. Qb3 {[%clk 0:00:49.4]} 31... Qe6 {[%clk 0:00:07.1]} 32. Rd8+
{[%clk 0:00:47.8]} 32... Kf7 {[%clk 0:00:07.4]} 33. R8d7+ {[%clk 0:00:46.9]}
33... Rxd7 {[%clk 0:00:07.5]} 34. Rxd7+ {[%clk 0:00:45.4]} 1-0

[Event "Late-Titled-Tuesday-Blitz-February-06-2024"]
[Site "Chess.com"]
[Date "2024.02.06"]
[Round "8"]
[White "LionTheLeon_06"]
[Black "Korchmar_Vasiliy"]
[Result "1-0"]
[WhiteElo "2886"]
[BlackElo "2729"]
[TimeControl "180+1"]
[EndTime "15:28:25 PST"]
[Termination "LionTheLeon_06 won on time"]

1. c4 {[%clk 0:03:00.9]} 1... c6 {[%clk 0:02:59.3]} 2. Nf3 {[%clk 0:03:00.8]}
2... d5 {[%clk 0:02:59.7]} 3. e3 {[%clk 0:03:01.5]} 3... Nf6 {[%clk 0:03:00.1]}
4. b3 {[%clk 0:03:02]} 4... e6 {[%clk 0:02:59.6]} 5. Bb2 {[%clk 0:03:02.6]} 5...
Bd6 {[%clk 0:02:59.8]} 6. Nc3 {[%clk 0:03:02.1]} 6... O-O {[%clk 0:02:58.1]} 7.
d4 {[%clk 0:03:02.7]} 7... Nbd7 {[%clk 0:02:57]} 8. Be2 {[%clk 0:03:02.8]} 8...
b6 {[%clk 0:02:57]} 9. O-O {[%clk 0:03:03]} 9... Bb7 {[%clk 0:02:57.5]} 10. Bd3
{[%clk 0:03:03.6]} 10... dxc4 {[%clk 0:02:24.6]} 11. bxc4 {[%clk 0:03:02.8]}
11... e5 {[%clk 0:02:25.3]} 12. Qc2 {[%clk 0:02:57.8]} 12... h6 {[%clk 0:02:24]}
13. Rad1 {[%clk 0:02:55.1]} 13... Qe7 {[%clk 0:02:22.9]} 14. h3 {[%clk
0:02:37.4]} 14... Rfe8 {[%clk 0:02:07.7]} 15. Nh4 {[%clk 0:02:29.8]} 15... e4
{[%clk 0:02:00.3]} 16. Nf5 {[%clk 0:02:24.5]} 16... Qe6 {[%clk 0:02:00.8]} 17.
Nxe4 {[%clk 0:02:17.5]} 17... Nxe4 {[%clk 0:02:01]} 18. Bxe4 {[%clk 0:02:17.8]}
18... Bf8 {[%clk 0:01:56.7]} 19. Bf3 {[%clk 0:02:11.8]} 19... Nf6 {[%clk
0:01:51.9]} 20. Ng3 {[%clk 0:02:02]} 20... Ba6 {[%clk 0:01:44.4]} 21. d5 {[%clk
0:01:58.3]} 21... cxd5 {[%clk 0:01:41]} 22. cxd5 {[%clk 0:01:59.2]} 22... Qd7
{[%clk 0:01:27.8]} 23. Rfe1 {[%clk 0:01:58.4]} 23... Rac8 {[%clk 0:01:27.2]} 24.
Qb1 {[%clk 0:01:58.4]} 24... Bb4 {[%clk 0:01:20.9]} 25. Bxf6 {[%clk 0:01:53]}
25... Bxe1 {[%clk 0:01:21.1]} 26. Rxe1 {[%clk 0:01:46.1]} 26... gxf6 {[%clk
0:01:19.7]} 27. Nh5 {[%clk 0:01:45.4]} 27... Qd6 {[%clk 0:01:14]} 28. Qf5 {[%clk
0:01:34.9]} 28... Re5 {[%clk 0:01:08]} 29. Nxf6+ {[%clk 0:01:26.6]} 29... Kg7
{[%clk 0:01:08.4]} 30. Nh5+ {[%clk 0:01:26]} 30... Kg8 {[%clk 0:01:02]} 31. Qf4
{[%clk 0:01:21]} 31... Rc4 {[%clk 0:00:48.6]} 32. Qg3+ {[%clk 0:01:19]} 32...
Kf8 {[%clk 0:00:45.1]} 33. Qg7+ {[%clk 0:01:18.6]} 33... Ke7 {[%clk 0:00:43.5]}
34. Qh8 {[%clk 0:01:06.6]} 34... Rg5 {[%clk 0:00:23.3]} 35. Ng3 {[%clk
0:00:52.5]} 35... Rc8 {[%clk 0:00:10]} 36. Qb2 {[%clk 0:00:50.6]} 36... Bc4
{[%clk 0:00:04.2]} 37. Ne4 {[%clk 0:00:50.5]} 1-0